{"text_format":"1","workbook":"xlsx","n_sheets":1,"sheets":["Verein"],"not_rendered":{"charts":0,"images":1,"macros":1,"external_links":0,"defined_names":0,"comments":0,"pivot_tables":0},"unopened":[],"bounds":{"document_bytes":16777216,"sheet_cells":100000,"rows_first":2000,"rows_last":500,"rows_between":2000,"halvings":0,"cell_chars":16384,"cell_head_chars":4096},"cells_cut":0,"cells_raw":0,"read":"whole","date_system":"1900"}

{"sheet":"Verein","index":0,"n_rows":47,"n_cols":46,"rows_kept":47,"cut":false,"hidden":false,"merged":[[42,9,42,12],[42,13,42,18],[43,9,43,12],[43,13,43,18],[7,44,8,44],[39,9,39,12],[39,13,39,18],[40,9,40,12],[40,13,40,18],[41,9,41,12],[41,13,41,18],[36,9,36,12],[36,13,36,18],[37,9,37,12],[37,13,37,18],[38,9,38,12],[38,13,38,18],[33,9,33,18],[33,19,33,26],[34,9,34,12],[34,13,34,18],[35,9,35,12],[35,13,35,18],[7,26,8,26],[7,27,8,27],[7,28,7,37],[7,38,7,43],[7,45,8,45],[32,9,32,18],[7,6,9,6],[7,7,9,7],[7,8,9,8],[7,9,7,18],[7,19,7,24],[7,25,8,25],[7,0,9,0],[7,1,9,1],[7,2,9,2],[7,3,9,3],[7,4,9,4],[7,5,9,5]]}
[null,null,null,null,"Helferinnen- und Helfer-Meldeformular für Vereine"]
[]
[null,null,null,null,"Vereinsname:"]
[null,null,null,null,"Verantwortliche Person:"]
[null,null,null,null,"E-Mail:"]
[null,null,null,null,"Telefon:"]
[]
["Name","Vorname","Adresse","PLZ","Ort","Telefon","E-Mail","Jahrgang","Beruf","Einsatztage",null,null,null,null,null,null,null,null,null,"Art der Arbeit",null,null,null,null,null,"Anzahl Einsätze \n(a 4-6 h)","Erfahrung \nin/mit:","Bemerkungen/Wünsche:","Codierung Einsatztage",null,null,null,null,null,null,null,null,null,"Art der \nArbeit",null,null,null,null,null,"Codierung","T-Shirt-\nGrösse"]
[null,null,null,null,null,null,null,null,null,"08","09","10","10","11","12","18","19","20","21","a","b","c","d","e","f",null,null,null,"08","09","10","10","11","12","18","19","20","21","a","b","c","d","e","f"]
[null,null,null,null,null,null,null,null,null,"Auf1","Auf2","Auf3","Fr1","Sa1","So1","Sa2","So2","Ab1","Ab2"]
["Muster","Max","Musterweg",9999,"Muster","041 123 45 67","max.muster@gmx.com",1995,"Mustermeister","x",null,"x",null,"x",null,null,"x","x",null,"x",null,"x","x",null,null,3,"vieles","keine",{"$f":"IF(J11=\"\",\"\",\"Auf1+\")","v":"Auf1+"},{"$f":"IF(K11=\"\",\"\",\"Auf2+\")","v":""},{"$f":"IF(L11=\"\",\"\",\"Auf3+\")","v":"Auf3+"},{"$f":"IF(M11=\"\",\"\",\"Fr1+\")","v":""},{"$f":"IF(N11=\"\",\"\",\"Sa1+\")","v":"Sa1+"},{"$f":"IF(O11=\"\",\"\",\"So1+\")","v":""},{"$f":"IF(P11=\"\",\"\",\"Sa2+\")","v":""},{"$f":"IF(Q11=\"\",\"\",\"So2+\")","v":"So2+"},{"$f":"IF(R11=\"\",\"\",\"Ab1+\")","v":"Ab1+"},{"$f":"IF(S11=\"\",\"\",\"Ab2+\")","v":""},{"$f":"IF(T11=\"\",\"\",\"a+\")","v":"a+"},{"$f":"IF(U11=\"\",\"\",\"b+\")","v":""},{"$f":"IF(V11=\"\",\"\",\"c+\")","v":"c+"},{"$f":"IF(W11=\"\",\"\",\"d+\")","v":"d+"},{"$f":"IF(X11=\"\",\"\",\"e+\")","v":""},{"$f":"IF(Y11=\"\",\"\",\"f+\")","v":""},{"$f":"AC11&AD11&AE11&AF11&AG11&AH11&AI11&AJ11&AK11&AL11&\" : \"&AM11&AN11&AO11&AP11&AQ11&AR11&\" : Jg=\"&H11&\" : Beruf=\"&I11&\" : Anz=\"&Z11&\" : Erf=\"&AA11&\" : \"&AB11","v":"Auf1+Auf3+Sa1+So2+Ab1+ : a+c+d+ : Jg=1995 : Beruf=Mustermeister : Anz=3 : Erf=vieles : keine"},"M: XL"]
[null,null,null,null,null,null,null,null,null,null,null,null,null,null,null,null,null,null,null,null,null,null,null,null,null,null,null,null,{"$f":"IF(J12=\"\",\"\",\"Auf1+\")","v":""},{"$f":"IF(K12=\"\",\"\",\"Auf2+\")","v":""},{"$f":"IF(L12=\"\",\"\",\"Auf3+\")","v":""},{"$f":"IF(M12=\"\",\"\",\"Fr1+\")","v":""},{"$f":"IF(N12=\"\",\"\",\"Sa1+\")","v":""},{"$f":"IF(O12=\"\",\"\",\"So1+\")","v":""},{"$f":"IF(P12=\"\",\"\",\"Sa2+\")","v":""},{"$f":"IF(Q12=\"\",\"\",\"So2+\")","v":""},{"$f":"IF(R12=\"\",\"\",\"Ab1+\")","v":""},{"$f":"IF(S12=\"\",\"\",\"Ab2+\")","v":""},{"$f":"IF(T12=\"\",\"\",\"a+\")","v":""},{"$f":"IF(U12=\"\",\"\",\"b+\")","v":""},{"$f":"IF(V12=\"\",\"\",\"c+\")","v":""},{"$f":"IF(W12=\"\",\"\",\"d+\")","v":""},{"$f":"IF(X12=\"\",\"\",\"e+\")","v":""},{"$f":"IF(Y12=\"\",\"\",\"f+\")","v":""}," :  : Jg= : Beruf= : Anz= : Erf= : ","Kind"]
[null,null,null,null,null,null,null,null,null,null,null,null,null,null,null,null,null,null,null,null,null,null,null,null,null,null,null,null,{"$f":"IF(J13=\"\",\"\",\"Auf1+\")","v":""},{"$f":"IF(K13=\"\",\"\",\"Auf2+\")","v":""},{"$f":"IF(L13=\"\",\"\",\"Auf3+\")","v":""},{"$f":"IF(M13=\"\",\"\",\"Fr1+\")","v":""},{"$f":"IF(N13=\"\",\"\",\"Sa1+\")","v":""},{"$f":"IF(O13=\"\",\"\",\"So1+\")","v":""},{"$f":"IF(P13=\"\",\"\",\"Sa2+\")","v":""},{"$f":"IF(Q13=\"\",\"\",\"So2+\")","v":""},{"$f":"IF(R13=\"\",\"\",\"Ab1+\")","v":""},{"$f":"IF(S13=\"\",\"\",\"Ab2+\")","v":""},"","","","","",""," :  : Jg= : Beruf= : Anz= : Erf= : ","F:L"]
[null,null,null,null,null,null,null,null,null,null,null,null,null,null,null,null,null,null,null,null,null,null,null,null,null,null,null,null,{"$f":"IF(J14=\"\",\"\",\"Auf1+\")","v":""},{"$f":"IF(K14=\"\",\"\",\"Auf2+\")","v":""},{"$f":"IF(L14=\"\",\"\",\"Auf3+\")","v":""},{"$f":"IF(M14=\"\",\"\",\"Fr1+\")","v":""},{"$f":"IF(N14=\"\",\"\",\"Sa1+\")","v":""},{"$f":"IF(O14=\"\",\"\",\"So1+\")","v":""},{"$f":"IF(P14=\"\",\"\",\"Sa2+\")","v":""},{"$f":"IF(Q14=\"\",\"\",\"So2+\")","v":""},{"$f":"IF(R14=\"\",\"\",\"Ab1+\")","v":""},{"$f":"IF(S14=\"\",\"\",\"Ab2+\")","v":""},"","","","","",""," :  : Jg= : Beruf= : Anz= : Erf= : "]
[null,null,null,null,null,null,null,null,null,null,null,null,null,null,null,null,null,null,null,null,null,null,null,null,null,null,null,null,"","","","","","","","","","","","","","","",""," :  : Jg= : Beruf= : Anz= : Erf= : "]
[null,null,null,null,null,null,null,null,null,null,null,null,null,null,null,null,null,null,null,null,null,null,null,null,null,null,null,null,"","","","","","","","","","","","","","","",""," :  : Jg= : Beruf= : Anz= : Erf= : "]
[null,null,null,null,null,null,null,null,null,null,null,null,null,null,null,null,null,null,null,null,null,null,null,null,null,null,null,null,"","","","","","","","","","","","","","","",""," :  : Jg= : Beruf= : Anz= : Erf= : "]
[null,null,null,null,null,null,null,null,null,null,null,null,null,null,null,null,null,null,null,null,null,null,null,null,null,null,null,null,"","","","","","","","","","","","","","","",""," :  : Jg= : Beruf= : Anz= : Erf= : "]
[null,null,null,null,null,null,null,null,null,null,null,null,null,null,null,null,null,null,null,null,null,null,null,null,null,null,null,null,"","","","","","","","","","","","","","","",""," :  : Jg= : Beruf= : Anz= : Erf= : "]
[null,null,null,null,null,null,null,null,null,null,null,null,null,null,null,null,null,null,null,null,null,null,null,null,null,null,null,null,"","","","","","","","","","","","","","","",""," :  : Jg= : Beruf= : Anz= : Erf= : "]
[null,null,null,null,null,null,null,null,null,null,null,null,null,null,null,null,null,null,null,null,null,null,null,null,null,null,null,null,"","","","","","","","","","","","","","","",""," :  : Jg= : Beruf= : Anz= : Erf= : "]
[null,null,null,null,null,null,null,null,null,null,null,null,null,null,null,null,null,null,null,null,null,null,null,null,null,null,null,null,"","","","","","","","","","","","","","","",""," :  : Jg= : Beruf= : Anz= : Erf= : "]
[null,null,null,null,null,null,null,null,null,null,null,null,null,null,null,null,null,null,null,null,null,null,null,null,null,null,null,null,"","","","","","","","","","","","","","","",""," :  : Jg= : Beruf= : Anz= : Erf= : "]
[null,null,null,null,null,null,null,null,null,null,null,null,null,null,null,null,null,null,null,null,null,null,null,null,null,null,null,null,"","","","","","","","","","","","","","","",""," :  : Jg= : Beruf= : Anz= : Erf= : "]
[null,null,null,null,null,null,null,null,null,null,null,null,null,null,null,null,null,null,null,null,null,null,null,null,null,null,null,null,"","","","","","","","","","","","","","","",""," :  : Jg= : Beruf= : Anz= : Erf= : "]
[null,null,null,null,null,null,null,null,null,null,null,null,null,null,null,null,null,null,null,null,null,null,null,null,null,null,null,null,"","","","","","","","","","","","","","","",""," :  : Jg= : Beruf= : Anz= : Erf= : "]
[null,null,null,null,null,null,null,null,null,null,null,null,null,null,null,null,null,null,null,null,null,null,null,null,null,null,null,null,"","","","","","","","","","","","","","","",""," :  : Jg= : Beruf= : Anz= : Erf= : "]
[null,null,null,null,null,null,null,null,null,null,null,null,null,null,null,null,null,null,null,null,null,null,null,null,null,null,null,null,"","","","","","","","","","","","","","","",""," :  : Jg= : Beruf= : Anz= : Erf= : "]
[null,null,null,null,null,null,null,null,null,null,null,null,null,null,null,null,null,null,null,null,null,null,null,null,null,null,null,null,"","","","","","","","","","","","","","","",""," :  : Jg= : Beruf= : Anz= : Erf= : "]
[null,null,null,null,null,null,null,null,null,null,null,null,null,null,null,null,null,null,null,null,null,null,null,null,null,null,null,null,"","","","","","","","","","","","","","","",""," :  : Jg= : Beruf= : Anz= : Erf= : "]
[null,null,null,null,null,null,null,null,null,null,null,null,null,null,null,null,null,null,null,null,null,null,null,null,null,null,null,null,"","","","","","","","","","","","","","","",""," :  : Jg= : Beruf= : Anz= : Erf= : "]
[]
[null,null,null,null,null,null,null,null,null,"Möglichkeiten"]
[null,null,null,null,null,null,null,null,null,"Einsatztage",null,null,null,null,null,null,null,null,null,"Art der Arbeit",null,null,null,null,null,null,null,"T-Shirt"]
[null,null,null,null,null,null,null,null,null,"2022-06-08",null,null,null,"Aufbau",null,null,null,null,null,"a: egal",null,null,null,null,null,null,null,"Geschlecht",null,null,null,null,null,null,null,null,null,null,null,null,null,null,null,null,null,"Grössen"]
[null,null,null,null,null,null,null,null,null,"2022-06-09",null,null,null,"Aufbau",null,null,null,null,null,"b: Festbetrieb",null,null,null,null,null,null,null,"F: -> Frau",null,null,null,null,null,null,null,null,null,null,null,null,null,null,null,null,null,"XS"]
[null,null,null,null,null,null,null,null,null,"2022-06-10",null,null,null,"Aufbau",null,null,null,null,null,"c: musikalischer Wettbewerb",null,null,null,null,null,null,null,null,null,null,null,null,null,null,null,null,null,null,null,null,null,null,null,null,null,"S"]
[null,null,null,null,null,null,null,null,null,"2022-06-10",null,null,null,"Veteranenehrung",null,null,null,null,null,"d: körperliche Arbeit",null,null,null,null,null,null,null,null,null,null,null,null,null,null,null,null,null,null,null,null,null,null,null,null,null,"M"]
[null,null,null,null,null,null,null,null,null,"2022-06-11",null,null,null,"Jugendmusikfest",null,null,null,null,null,"e: Vereinsbetreuung (Infoveranstaltung obligatorisch)",null,null,null,null,null,null,null,null,null,null,null,null,null,null,null,null,null,null,null,null,null,null,null,null,null,"L"]
[null,null,null,null,null,null,null,null,null,"2022-06-12",null,null,null,"Musikfest Tag 1",null,null,null,null,null,"f: Aufsicht",null,null,null,null,null,null,null,null,null,null,null,null,null,null,null,null,null,null,null,null,null,null,null,null,null,"XL"]
[null,null,null,null,null,null,null,null,null,"2022-06-18",null,null,null,"Musikfest Tag 2",null,null,null,null,null,null,null,null,null,null,null,null,null,"M: -> Mann",null,null,null,null,null,null,null,null,null,null,null,null,null,null,null,null,null,"S"]
[null,null,null,null,null,null,null,null,null,"2022-06-19",null,null,null,"Musikfest Tag 3",null,null,null,null,null,null,null,null,null,null,null,null,null,null,null,null,null,null,null,null,null,null,null,null,null,null,null,null,null,null,null,"M"]
[null,null,null,null,null,null,null,null,null,"2022-06-20",null,null,null,"Abbau",null,null,null,null,null,null,null,null,null,null,null,null,null,null,null,null,null,null,null,null,null,null,null,null,null,null,null,null,null,null,null,"L"]
[null,null,null,null,null,null,null,null,null,"2022-06-21",null,null,null,"Abbau",null,null,null,null,null,null,null,null,null,null,null,null,null,null,null,null,null,null,null,null,null,null,null,null,null,null,null,null,null,null,null,"XL"]
[null,null,null,null,null,null,null,null,null,null,null,null,null,null,null,null,null,null,null,null,null,null,null,null,null,null,null,null,null,null,null,null,null,null,null,null,null,null,null,null,null,null,null,null,null,"XXL"]
[null,null,null,null,null,null,null,null,null,null,null,null,null,null,null,null,null,null,null,null,null,null,null,null,null,null,null,null,null,null,null,null,null,null,null,null,null,null,null,null,null,null,null,null,null,"XXXL"]
[null,null,null,null,null,null,null,null,null,null,null,null,null,null,null,null,null,null,null,null,null,null,null,null,null,null,null,"Kind"]